{"text_format":"3","workbook":"xlsx","n_sheets":1,"sheets":["Пайда және шығын жағдайы"],"not_rendered":{"defined_names":2},"read":"whole","date_system":"1900"}

{"sheet":"Пайда және шығын жағдайы","index":0,"n_rows":60,"n_cols":10,"rows_kept":60,"merged":[[9,1,9,9],[16,1,16,9],[24,1,24,9],[38,1,38,9],[43,1,43,9],[56,1,56,9]]}
[null,"Пайда және шығын Ресми есеп"]
[]
[{"$nulls":3},"ӨТКЕН МЕРЗІМ ","БЮДЖЕТ ","АҒЫМДАҒЫ МЕРЗІМ ",null,"АҒЫМДАҒЫ МЕРЗІМ\nСАТУЛАРЫ % ","% ӨТКЕН МЕРЗІМНЕН ӨЗГЕРТУ ","% БЮДЖЕТТЕН ӨЗГЕРТУ "]
[null,"Сатулар пайдасы"]
[null,"Тауар/қызмет 1",null,40,50,45,null,{"$f":"IFERROR(SalesRevenue[[#This Row],[Ағымдағы мерзім]]/SUBTOTAL(109,SalesRevenue[Ағымдағы мерзім]),0)","v":{"v":1,"d":"100.0%"}},{"$f":"IFERROR(SalesRevenue[[#This Row],[Ағымдағы мерзім]]/SalesRevenue[[#This Row],[Өткен мерзім]]-1,0)","v":{"v":0.125,"d":"12.5%"}},{"$f":"IFERROR(SalesRevenue[[#This Row],[Ағымдағы мерзім]]/SalesRevenue[[#This Row],[Бюджет]]-1,0)","v":{"v":-0.09999999999999998,"d":"-10.0%"}}]
[null,"Тауар/қызмет 2",{"$nulls":5},{"$f":"IFERROR(SalesRevenue[[#This Row],[Ағымдағы мерзім]]/SUBTOTAL(109,SalesRevenue[Ағымдағы мерзім]),0)","v":0},{"$f":"IFERROR(SalesRevenue[[#This Row],[Ағымдағы мерзім]]/SalesRevenue[[#This Row],[Өткен мерзім]]-1,0)","v":0},{"$f":"IFERROR(SalesRevenue[[#This Row],[Ағымдағы мерзім]]/SalesRevenue[[#This Row],[Бюджет]]-1,0)","v":0}]
[null,"Тауар/қызмет 3",{"$nulls":5},{"$f":"IFERROR(SalesRevenue[[#This Row],[Ағымдағы мерзім]]/SUBTOTAL(109,SalesRevenue[Ағымдағы мерзім]),0)","v":0},{"$f":"IFERROR(SalesRevenue[[#This Row],[Ағымдағы мерзім]]/SalesRevenue[[#This Row],[Өткен мерзім]]-1,0)","v":0},{"$f":"IFERROR(SalesRevenue[[#This Row],[Ағымдағы мерзім]]/SalesRevenue[[#This Row],[Бюджет]]-1,0)","v":0}]
[null,"Тауар/қызмет 4",{"$nulls":5},{"$f":"IFERROR(SalesRevenue[[#This Row],[Ағымдағы мерзім]]/SUBTOTAL(109,SalesRevenue[Ағымдағы мерзім]),0)","v":0},{"$f":"IFERROR(SalesRevenue[[#This Row],[Ағымдағы мерзім]]/SalesRevenue[[#This Row],[Өткен мерзім]]-1,0)","v":0},{"$f":"IFERROR(SalesRevenue[[#This Row],[Ағымдағы мерзім]]/SalesRevenue[[#This Row],[Бюджет]]-1,0)","v":0}]
[null,"Барлығы",null,{"$f":"SUBTOTAL(109,SalesRevenue[Өткен мерзім])","v":40},{"$f":"SUBTOTAL(109,SalesRevenue[Бюджет])","v":50},{"$f":"SUBTOTAL(109,SalesRevenue[Ағымдағы мерзім])","v":45},null,{"$f":"IFERROR(SalesRevenue[[#Totals],[Ағымдағы мерзім]]/SalesRevenue[[#Totals],[Ағымдағы мерзім]],0)","v":{"v":1,"d":"100.0%"}},{"$f":"IFERROR(SalesRevenue[[#Totals],[Ағымдағы мерзім]]/SalesRevenue[[#Totals],[Өткен мерзім]]-1,0)","v":{"v":0.125,"d":"12.5%"}},{"$f":"IFERROR(SalesRevenue[[#Totals],[Ағымдағы мерзім]]/SalesRevenue[[#Totals],[Бюджет]]-1,0)","v":{"v":-0.09999999999999998,"d":"-10.0%"}}]
[]
[null,"Сатулар бағасы"]
[null,"Тауар/қызмет 1",null,null,2,3,null,{"$f":"IFERROR(CostOfSales[[#This Row],[Ағымдағы мерзім]]/SUBTOTAL(109,SalesRevenue[Ағымдағы мерзім]),0)","v":{"v":0.06666666666666667,"d":"6.7%"}},{"$f":"IFERROR(CostOfSales[[#This Row],[Ағымдағы мерзім]]/CostOfSales[[#This Row],[Өткен мерзім]]-1,0)","v":0},{"$f":"IFERROR(CostOfSales[[#This Row],[Ағымдағы мерзім]]/CostOfSales[[#This Row],[Бюджет]]-1,0)","v":{"v":0.5,"d":"50.0%"}}]
[null,"Тауар/қызмет 2",null,null,5,3,null,{"$f":"IFERROR(CostOfSales[[#This Row],[Ағымдағы мерзім]]/SUBTOTAL(109,SalesRevenue[Ағымдағы мерзім]),0)","v":{"v":0.06666666666666667,"d":"6.7%"}},{"$f":"IFERROR(CostOfSales[[#This Row],[Ағымдағы мерзім]]/CostOfSales[[#This Row],[Өткен мерзім]]-1,0)","v":0},{"$f":"IFERROR(CostOfSales[[#This Row],[Ағымдағы мерзім]]/CostOfSales[[#This Row],[Бюджет]]-1,0)","v":{"v":-0.4,"d":"-40.0%"}}]
[null,"Тауар/қызмет 3",{"$nulls":3},1,null,{"$f":"IFERROR(CostOfSales[[#This Row],[Ағымдағы мерзім]]/SUBTOTAL(109,SalesRevenue[Ағымдағы мерзім]),0)","v":{"v":0.022222222222222223,"d":"2.2%"}},{"$f":"IFERROR(CostOfSales[[#This Row],[Ағымдағы мерзім]]/CostOfSales[[#This Row],[Өткен мерзім]]-1,0)","v":0},{"$f":"IFERROR(CostOfSales[[#This Row],[Ағымдағы мерзім]]/CostOfSales[[#This Row],[Бюджет]]-1,0)","v":0}]
[null,"Тауар/қызмет 4",{"$nulls":5},{"$f":"IFERROR(CostOfSales[[#This Row],[Ағымдағы мерзім]]/SUBTOTAL(109,SalesRevenue[Ағымдағы мерзім]),0)","v":0},{"$f":"IFERROR(CostOfSales[[#This Row],[Ағымдағы мерзім]]/CostOfSales[[#This Row],[Өткен мерзім]]-1,0)","v":0},{"$f":"IFERROR(CostOfSales[[#This Row],[Ағымдағы мерзім]]/CostOfSales[[#This Row],[Бюджет]]-1,0)","v":0}]
[null,"Барлығы",null,{"$f":"SUBTOTAL(109,CostOfSales[Өткен мерзім])","v":0},{"$f":"SUBTOTAL(109,CostOfSales[Бюджет])","v":7},{"$f":"SUBTOTAL(109,CostOfSales[Ағымдағы мерзім])","v":7},null,{"$f":"IFERROR(CostOfSales[[#Totals],[Ағымдағы мерзім]]/SUBTOTAL(109,SalesRevenue[Ағымдағы мерзім]),0)","v":{"v":0.15555555555555556,"d":"15.6%"}},{"$f":"IFERROR(CostOfSales[[#Totals],[Ағымдағы мерзім]]/CostOfSales[[#Totals],[Өткен мерзім]]-1,0)","v":0},{"$f":"IFERROR(CostOfSales[[#Totals],[Ағымдағы мерзім]]/CostOfSales[[#Totals],[Бюджет]]-1,0)","v":0}]
[]
[null,"Жалпы пайда",null,{"$f":"SUM(SalesRevenue[Өткен мерзім])-SUM(CostOfSales[Өткен мерзім])","v":40},{"$f":"SUM(SalesRevenue[Бюджет])-SUM(CostOfSales[Бюджет])","v":43},{"$f":"SUM(SalesRevenue[Ағымдағы мерзім])-SUM(CostOfSales[Ағымдағы мерзім])","v":38},null,{"$f":"IFERROR(F18/SUBTOTAL(109,SalesRevenue[Ағымдағы мерзім]),0)","v":{"v":0.8444444444444444,"d":"84.4%"}},{"$f":"IFERROR(F18/D18-1,0)","v":{"v":-0.050000000000000044,"d":"-5.0%"}},{"$f":"IFERROR(F18/E18-1,0)","v":{"v":-0.11627906976744184,"d":"-11.6%"}}]
[]
[null,"Жұмыс шығыны: сатулар мен маркетинг"]
[null,"Жарнамалау",null,null,22,19,null,{"$f":"IFERROR(SalesAndMarketing[[#This Row],[Ағымдағы мерзім]]/SUBTOTAL(109,SalesRevenue[Ағымдағы мерзім]),0)","v":{"v":0.4222222222222222,"d":"42.2%"}},{"$f":"IFERROR(SalesAndMarketing[[#This Row],[Ағымдағы мерзім]]/SalesAndMarketing[[#This Row],[Өткен мерзім]]-1,0)","v":0},{"$f":"IFERROR(SalesAndMarketing[[#This Row],[Ағымдағы мерзім]]/SalesAndMarketing[[#This Row],[Бюджет]]-1,0)","v":{"v":-0.13636363636363635,"d":"-13.6%"}}]
[null,"Тікелей маркетинг",{"$nulls":5},{"$f":"IFERROR(SalesAndMarketing[[#This Row],[Ағымдағы мерзім]]/SUBTOTAL(109,SalesRevenue[Ағымдағы мерзім]),0)","v":0},{"$f":"IFERROR(SalesAndMarketing[[#This Row],[Ағымдағы мерзім]]/SalesAndMarketing[[#This Row],[Өткен мерзім]]-1,0)","v":0},{"$f":"IFERROR(SalesAndMarketing[[#This Row],[Ағымдағы мерзім]]/SalesAndMarketing[[#This Row],[Бюджет]]-1,0)","v":0}]
[null,"Басқа шығындар (көрсету)",{"$nulls":5},{"$f":"IFERROR(SalesAndMarketing[[#This Row],[Ағымдағы мерзім]]/SUBTOTAL(109,SalesRevenue[Ағымдағы мерзім]),0)","v":0},{"$f":"IFERROR(SalesAndMarketing[[#This Row],[Ағымдағы мерзім]]/SalesAndMarketing[[#This Row],[Өткен мерзім]]-1,0)","v":0},{"$f":"IFERROR(SalesAndMarketing[[#This Row],[Ағымдағы мерзім]]/SalesAndMarketing[[#This Row],[Бюджет]]-1,0)","v":0}]
[null,"Барлығы",null,{"$f":"SUBTOTAL(109,SalesAndMarketing[Өткен мерзім])","v":0},{"$f":"SUBTOTAL(109,SalesAndMarketing[Бюджет])","v":22},{"$f":"SUBTOTAL(109,SalesAndMarketing[Ағымдағы мерзім])","v":19},null,{"$f":"IFERROR(SalesAndMarketing[[#Totals],[Ағымдағы мерзім]]/SUBTOTAL(109,SalesRevenue[Ағымдағы мерзім]),0)","v":{"v":0.4222222222222222,"d":"42.2%"}},{"$f":"IFERROR(SalesAndMarketing[[#Totals],[Ағымдағы мерзім]]/SalesAndMarketing[[#Totals],[Өткен мерзім]]-1,0)","v":0},{"$f":"IFERROR(SalesAndMarketing[[#Totals],[Ағымдағы мерзім]]/SalesAndMarketing[[#Totals],[Бюджет]]-1,0)","v":{"v":-0.13636363636363635,"d":"-13.6%"}}]
[]
[null,"Жұмыс шығыны: жалпы және әкімшілік"]
[null,"Жалақылар мен еңбекақылар",null,null,56,51,null,{"$f":"IFERROR(GeneralAndAdministrative[[#This Row],[Ағымдағы мерзім]]/SUBTOTAL(109,SalesRevenue[Ағымдағы мерзім]),0)","v":{"v":1.1333333333333333,"d":"113.3%"}},{"$f":"IFERROR(GeneralAndAdministrative[[#This Row],[Ағымдағы мерзім]]/GeneralAndAdministrative[[#This Row],[Өткен мерзім]]-1,0)","v":0},{"$f":"IFERROR(GeneralAndAdministrative[[#This Row],[Ағымдағы мерзім]]/GeneralAndAdministrative[[#This Row],[Бюджет]]-1,0)","v":{"v":-0.0892857142857143,"d":"-8.9%"}}]
[null,"Сыртқы қызметтер",{"$nulls":5},{"$f":"IFERROR(GeneralAndAdministrative[[#This Row],[Ағымдағы мерзім]]/SUBTOTAL(109,SalesRevenue[Ағымдағы мерзім]),0)","v":0},{"$f":"IFERROR(GeneralAndAdministrative[[#This Row],[Ағымдағы мерзім]]/GeneralAndAdministrative[[#This Row],[Өткен мерзім]]-1,0)","v":0},{"$f":"IFERROR(GeneralAndAdministrative[[#This Row],[Ағымдағы мерзім]]/GeneralAndAdministrative[[#This Row],[Бюджет]]-1,0)","v":0}]
[null,"Қосымша бөлшектер",{"$nulls":5},{"$f":"IFERROR(GeneralAndAdministrative[[#This Row],[Ағымдағы мерзім]]/SUBTOTAL(109,SalesRevenue[Ағымдағы мерзім]),0)","v":0},{"$f":"IFERROR(GeneralAndAdministrative[[#This Row],[Ағымдағы мерзім]]/GeneralAndAdministrative[[#This Row],[Өткен мерзім]]-1,0)","v":0},{"$f":"IFERROR(GeneralAndAdministrative[[#This Row],[Ағымдағы мерзім]]/GeneralAndAdministrative[[#This Row],[Бюджет]]-1,0)","v":0}]
[null,"Тамақ және ойын-сауық",{"$nulls":5},{"$f":"IFERROR(GeneralAndAdministrative[[#This Row],[Ағымдағы мерзім]]/SUBTOTAL(109,SalesRevenue[Ағымдағы мерзім]),0)","v":0},{"$f":"IFERROR(GeneralAndAdministrative[[#This Row],[Ағымдағы мерзім]]/GeneralAndAdministrative[[#This Row],[Өткен мерзім]]-1,0)","v":0},{"$f":"IFERROR(GeneralAndAdministrative[[#This Row],[Ағымдағы мерзім]]/GeneralAndAdministrative[[#This Row],[Бюджет]]-1,0)","v":0}]
[null,"Жалдау",{"$nulls":5},{"$f":"IFERROR(GeneralAndAdministrative[[#This Row],[Ағымдағы мерзім]]/SUBTOTAL(109,SalesRevenue[Ағымдағы мерзім]),0)","v":0},{"$f":"IFERROR(GeneralAndAdministrative[[#This Row],[Ағымдағы мерзім]]/GeneralAndAdministrative[[#This Row],[Өткен мерзім]]-1,0)","v":0},{"$f":"IFERROR(GeneralAndAdministrative[[#This Row],[Ағымдағы мерзім]]/GeneralAndAdministrative[[#This Row],[Бюджет]]-1,0)","v":0}]
[null,"Телефон нөмірі",{"$nulls":5},{"$f":"IFERROR(GeneralAndAdministrative[[#This Row],[Ағымдағы мерзім]]/SUBTOTAL(109,SalesRevenue[Ағымдағы мерзім]),0)","v":0},{"$f":"IFERROR(GeneralAndAdministrative[[#This Row],[Ағымдағы мерзім]]/GeneralAndAdministrative[[#This Row],[Өткен мерзім]]-1,0)","v":0},{"$f":"IFERROR(GeneralAndAdministrative[[#This Row],[Ағымдағы мерзім]]/GeneralAndAdministrative[[#This Row],[Бюджет]]-1,0)","v":0}]
[null,"Коммуналдық қызметтер төлем ақысы",{"$nulls":5},{"$f":"IFERROR(GeneralAndAdministrative[[#This Row],[Ағымдағы мерзім]]/SUBTOTAL(109,SalesRevenue[Ағымдағы мерзім]),0)","v":0},{"$f":"IFERROR(GeneralAndAdministrative[[#This Row],[Ағымдағы мерзім]]/GeneralAndAdministrative[[#This Row],[Өткен мерзім]]-1,0)","v":0},{"$f":"IFERROR(GeneralAndAdministrative[[#This Row],[Ағымдағы мерзім]]/GeneralAndAdministrative[[#This Row],[Бюджет]]-1,0)","v":0}]
[null,"Тозу",{"$nulls":5},{"$f":"IFERROR(GeneralAndAdministrative[[#This Row],[Ағымдағы мерзім]]/SUBTOTAL(109,SalesRevenue[Ағымдағы мерзім]),0)","v":0},{"$f":"IFERROR(GeneralAndAdministrative[[#This Row],[Ағымдағы мерзім]]/GeneralAndAdministrative[[#This Row],[Өткен мерзім]]-1,0)","v":0},{"$f":"IFERROR(GeneralAndAdministrative[[#This Row],[Ағымдағы мерзім]]/GeneralAndAdministrative[[#This Row],[Бюджет]]-1,0)","v":0}]
[null,"Сақтандыру",{"$nulls":5},{"$f":"IFERROR(GeneralAndAdministrative[[#This Row],[Ағымдағы мерзім]]/SUBTOTAL(109,SalesRevenue[Ағымдағы мерзім]),0)","v":0},{"$f":"IFERROR(GeneralAndAdministrative[[#This Row],[Ағымдағы мерзім]]/GeneralAndAdministrative[[#This Row],[Өткен мерзім]]-1,0)","v":0},{"$f":"IFERROR(GeneralAndAdministrative[[#This Row],[Ағымдағы мерзім]]/GeneralAndAdministrative[[#This Row],[Бюджет]]-1,0)","v":0}]
[null,"Жөндеу және техникалық қызмет көрсету",{"$nulls":5},{"$f":"IFERROR(GeneralAndAdministrative[[#This Row],[Ағымдағы мерзім]]/SUBTOTAL(109,SalesRevenue[Ағымдағы мерзім]),0)","v":0},{"$f":"IFERROR(GeneralAndAdministrative[[#This Row],[Ағымдағы мерзім]]/GeneralAndAdministrative[[#This Row],[Өткен мерзім]]-1,0)","v":0},{"$f":"IFERROR(GeneralAndAdministrative[[#This Row],[Ағымдағы мерзім]]/GeneralAndAdministrative[[#This Row],[Бюджет]]-1,0)","v":0}]
[null,"Басқа шығындар (көрсету)",{"$nulls":5},{"$f":"IFERROR(GeneralAndAdministrative[[#This Row],[Ағымдағы мерзім]]/SUBTOTAL(109,SalesRevenue[Ағымдағы мерзім]),0)","v":0},{"$f":"IFERROR(GeneralAndAdministrative[[#This Row],[Ағымдағы мерзім]]/GeneralAndAdministrative[[#This Row],[Өткен мерзім]]-1,0)","v":0},{"$f":"IFERROR(GeneralAndAdministrative[[#This Row],[Ағымдағы мерзім]]/GeneralAndAdministrative[[#This Row],[Бюджет]]-1,0)","v":0}]
[null,"Барлығы",null,{"$f":"SUBTOTAL(109,GeneralAndAdministrative[Өткен мерзім])","v":0},{"$f":"SUBTOTAL(109,GeneralAndAdministrative[Бюджет])","v":56},{"$f":"SUBTOTAL(109,GeneralAndAdministrative[Ағымдағы мерзім])","v":51},null,{"$f":"IFERROR(GeneralAndAdministrative[[#Totals],[Ағымдағы мерзім]]/SUBTOTAL(109,SalesRevenue[Ағымдағы мерзім]),0)","v":{"v":1.1333333333333333,"d":"113.3%"}},{"$f":"IFERROR(GeneralAndAdministrative[[#Totals],[Ағымдағы мерзім]]/GeneralAndAdministrative[[#Totals],[Өткен мерзім]]-1,0)","v":0},{"$f":"IFERROR(GeneralAndAdministrative[[#Totals],[Ағымдағы мерзім]]/GeneralAndAdministrative[[#Totals],[Бюджет]]-1,0)","v":{"v":-0.0892857142857143,"d":"-8.9%"}}]
[]
[null,"Жұмыс шығыны: басқа"]
[null,"Басқа да жұмыс шығындары 1",null,null,10,null,null,{"$f":"IFERROR(OtherOperatingExpenseCategory[[#This Row],[Ағымдағы мерзім]]/SUBTOTAL(109,SalesRevenue[Ағымдағы мерзім]),0)","v":0},{"$f":"IFERROR(OtherOperatingExpenseCategory[[#This Row],[Ағымдағы мерзім]]/OtherOperatingExpenseCategory[[#This Row],[Өткен мерзім]]-1,0)","v":0},{"$f":"IFERROR(OtherOperatingExpenseCategory[[#This Row],[Ағымдағы мерзім]]/OtherOperatingExpenseCategory[[#This Row],[Бюджет]]-1,0)","v":{"v":-1,"d":"-100.0%"}}]
[null,"Басқа да жұмыс шығындары 2",{"$nulls":5},{"$f":"IFERROR(OtherOperatingExpenseCategory[[#This Row],[Ағымдағы мерзім]]/SUBTOTAL(109,SalesRevenue[Ағымдағы мерзім]),0)","v":0},{"$f":"IFERROR(OtherOperatingExpenseCategory[[#This Row],[Ағымдағы мерзім]]/OtherOperatingExpenseCategory[[#This Row],[Өткен мерзім]]-1,0)","v":0},{"$f":"IFERROR(OtherOperatingExpenseCategory[[#This Row],[Ағымдағы мерзім]]/OtherOperatingExpenseCategory[[#This Row],[Бюджет]]-1,0)","v":0}]
[null,"Барлығы",null,{"$f":"SUBTOTAL(109,OtherOperatingExpenseCategory[Өткен мерзім])","v":0},{"$f":"SUBTOTAL(109,OtherOperatingExpenseCategory[Бюджет])","v":10},{"$f":"SUBTOTAL(109,OtherOperatingExpenseCategory[Ағымдағы мерзім])","v":0},null,{"$f":"IFERROR(OtherOperatingExpenseCategory[[#Totals],[Ағымдағы мерзім]]/SUBTOTAL(109,SalesRevenue[Ағымдағы мерзім]),0)","v":0},{"$f":"IFERROR(OtherOperatingExpenseCategory[[#Totals],[Ағымдағы мерзім]]/OtherOperatingExpenseCategory[[#Totals],[Өткен мерзім]]-1,0)","v":0},{"$f":"IFERROR(OtherOperatingExpenseCategory[[#Totals],[Ағымдағы мерзім]]/OtherOperatingExpenseCategory[[#Totals],[Бюджет]]-1,0)","v":{"v":-1,"d":"-100.0%"}}]
[]
[null,"Жалпы техникалық қызметке жұмсалатын шығындар",null,{"$f":"SUM(SalesAndMarketing[Өткен мерзім],GeneralAndAdministrative[Өткен мерзім],OtherOperatingExpenseCategory[Өткен мерзім])","v":0},{"$f":"SUM(SalesAndMarketing[Бюджет],GeneralAndAdministrative[Бюджет],OtherOperatingExpenseCategory[Бюджет])","v":88},{"$f":"SUM(SalesAndMarketing[Ағымдағы мерзім],GeneralAndAdministrative[Ағымдағы мерзім],OtherOperatingExpenseCategory[Ағымдағы мерзім])","v":70},null,{"$f":"IFERROR(F45/SUBTOTAL(109,SalesRevenue[Ағымдағы мерзім]),0)","v":{"v":1.5555555555555556,"d":"155.6%"}},{"$f":"IFERROR(F45/D45-1,0)","v":0},{"$f":"IFERROR(F45/E45-1,0)","v":{"v":-0.20454545454545459,"d":"-20.5%"}}]
[]
[null,"Жұмыстардың пайдасы",null,{"$f":"D18-D45","v":40},{"$f":"E18-E45","v":-45},{"$f":"F18-F45","v":-32},null,{"$f":"IFERROR(F47/SUBTOTAL(109,SalesRevenue[Ағымдағы мерзім]),0)","v":{"v":-0.7111111111111111,"d":"-71.1%"}},{"$f":"IFERROR(IF(D47=F47,0,IF(F47>D47,ABS((F47/D47)-1),IF(AND(F47<D47,D47<0),-((F47/D47)-1),(F47/D47)-1))),0)","v":{"v":-1.8,"d":"-180.0%"}},{"$f":"IFERROR(IF(E47=F47,0,IF(F47>E47,ABS((F47/E47)-1),IF(AND(F47<E47,E47<0),-((F47/E47)-1),(F47/E47)-1))),0)","v":{"v":0.28888888888888886,"d":"28.9%"}}]
[]
[null,"Басқа кіріс",{"$nulls":5},{"$f":"IFERROR(F49/SUBTOTAL(109,SalesRevenue[Ағымдағы мерзім]),0)","v":0},{"$f":"IFERROR(F49/D49-1,0)","v":0},{"$f":"IFERROR(F49/E49-1,0)","v":0}]
[]
[null,"Салық"]
[null,"Пайда салығы",null,null,32,30,null,{"$f":"IFERROR(Салықтар[[#This Row],[Ағымдағы мерзім]]/SUBTOTAL(109,SalesRevenue[Ағымдағы мерзім]),0)","v":{"v":0.6666666666666666,"d":"66.7%"}},{"$f":"IFERROR(Салықтар[[#This Row],[Ағымдағы мерзім]]/Салықтар[[#This Row],[Өткен мерзім]]-1,0)","v":0},{"$f":"IFERROR(Салықтар[[#This Row],[Ағымдағы мерзім]]/Салықтар[[#This Row],[Бюджет]]-1,0)","v":{"v":-0.0625,"d":"-6.3%"}}]
[null,"Кіріс салығы",{"$nulls":5},{"$f":"IFERROR(Салықтар[[#This Row],[Ағымдағы мерзім]]/SUBTOTAL(109,SalesRevenue[Ағымдағы мерзім]),0)","v":0},{"$f":"IFERROR(Салықтар[[#This Row],[Ағымдағы мерзім]]/Салықтар[[#This Row],[Өткен мерзім]]-1,0)","v":0},{"$f":"IFERROR(Салықтар[[#This Row],[Ағымдағы мерзім]]/Салықтар[[#This Row],[Бюджет]]-1,0)","v":0}]
[null,"Мүлік салығы",{"$nulls":5},{"$f":"IFERROR(Салықтар[[#This Row],[Ағымдағы мерзім]]/SUBTOTAL(109,SalesRevenue[Ағымдағы мерзім]),0)","v":0},{"$f":"IFERROR(Салықтар[[#This Row],[Ағымдағы мерзім]]/Салықтар[[#This Row],[Өткен мерзім]]-1,0)","v":0},{"$f":"IFERROR(Салықтар[[#This Row],[Ағымдағы мерзім]]/Салықтар[[#This Row],[Бюджет]]-1,0)","v":0}]
[null,"Басқа салықтар (көрсету)",{"$nulls":5},{"$f":"IFERROR(Салықтар[[#This Row],[Ағымдағы мерзім]]/SUBTOTAL(109,SalesRevenue[Ағымдағы мерзім]),0)","v":0},{"$f":"IFERROR(Салықтар[[#This Row],[Ағымдағы мерзім]]/Салықтар[[#This Row],[Өткен мерзім]]-1,0)","v":0},{"$f":"IFERROR(Салықтар[[#This Row],[Ағымдағы мерзім]]/Салықтар[[#This Row],[Бюджет]]-1,0)","v":0}]
[null,"Барлығы",null,{"$f":"SUBTOTAL(109,Салықтар[Өткен мерзім])","v":0},{"$f":"SUBTOTAL(109,Салықтар[Бюджет])","v":32},{"$f":"SUBTOTAL(109,Салықтар[Ағымдағы мерзім])","v":30},null,{"$f":"IFERROR(Салықтар[[#Totals],[Ағымдағы мерзім]]/SUBTOTAL(109,SalesRevenue[Ағымдағы мерзім]),0)","v":{"v":0.6666666666666666,"d":"66.7%"}},{"$f":"IFERROR(Салықтар[[#Totals],[Ағымдағы мерзім]]/Салықтар[[#Totals],[Өткен мерзім]]-1,0)","v":0},{"$f":"IFERROR(Салықтар[[#Totals],[Ағымдағы мерзім]]/Салықтар[[#Totals],[Бюджет]]-1,0)","v":{"v":-0.0625,"d":"-6.3%"}}]
[]
[null,"Таза пайда",null,{"$f":"D47+D49-Салықтар[[#Totals],[Өткен мерзім]]","v":40},{"$f":"E47+E49-Салықтар[[#Totals],[Өткен мерзім]]","v":-45},{"$f":"F47+F49-Салықтар[[#Totals],[Өткен мерзім]]","v":-32},null,{"$f":"IFERROR(F58/SUBTOTAL(109,SalesRevenue[Ағымдағы мерзім]),0)","v":{"v":-0.7111111111111111,"d":"-71.1%"}},{"$f":"IFERROR(IF(D58=F58,0,IF(F58>D58,ABS((F58/D58)-1),IF(AND(F58<D58,D58<0),-((F58/D58)-1),(F58/D58)-1))),0)","v":{"v":-1.8,"d":"-180.0%"}},{"$f":"IFERROR(IF(E58=F58,0,IF(F58>E58,ABS((F58/E58)-1),IF(AND(F58<E58,E58<0),-((F58/E58)-1),(F58/E58)-1))),0)","v":{"v":0.28888888888888886,"d":"28.9%"}}]
[null,"Жалпы маржа",null,{"$f":"D18/SUM(SalesRevenue[Өткен мерзім])","v":{"v":1,"d":"100.0%"}},{"$f":"E18/SUM(SalesRevenue[Бюджет])","v":{"v":0.86,"d":"86.0%"}},{"$f":"F18/SUM(SalesRevenue[Ағымдағы мерзім])","v":{"v":0.8444444444444444,"d":"84.4%"}}]
[null,"Сатулардың пайдасы",null,{"$f":"D58/SUM(SalesRevenue[Өткен мерзім])","v":{"v":1,"d":"100.0%"}},{"$f":"E58/SUM(SalesRevenue[Бюджет])","v":{"v":-0.9,"d":"-90.0%"}},{"$f":"F58/SUM(SalesRevenue[Ағымдағы мерзім])","v":{"v":-0.7111111111111111,"d":"-71.1%"}}]